bitfinex/quotes_BTCUSD_20250105
["timestamp","ask_amount","ask_price","bid_price","bid_amount"]
[1736065151004,0.00514802,97827.0,97826.0,0.13326929]
[1736065151226,0.00614802,97827.0,97826.0,0.13326929]
[1736065151846,0.00014802,97827.0,97826.0,0.13326929]
[1736065152257,0.00414802,97827.0,97826.0,0.13326929]
[1736065152477,0.00014802,97827.0,97826.0,0.13326929]
[1736065152649,0.00414802,97827.0,97826.0,0.13326929]
[1736065153001,0.00014802,97827.0,97826.0,0.13326929]
[1736065153410,0.00314802,97827.0,97826.0,0.13326929]
[1736065153639,0.00014802,97827.0,97826.0,0.13326929]
[1736065154242,0.00014802,97827.0,97826.0,0.13426929]
[1736065154647,0.00748,97844.0,97826.0,0.13326929]
[1736065154897,0.10398632,97843.0,97826.0,0.13376338]
[1736065155054,0.10398632,97843.0,97826.0,0.13676338]
[1736065156482,0.204411,97842.0,97826.0,0.13676338]
[1736065156697,0.10398632,97841.0,97826.0,0.13376338]
[1736065157466,0.204415,97840.0,97826.0,0.13376338]
[1736065159311,0.32464908,97840.0,97826.0,0.00666338]
[1736065159515,0.204415,97840.0,97826.0,0.00057949]
[1736065159947,0.208415,97840.0,97826.0,0.00057949]
[1736065160151,0.00748,97839.0,97826.0,0.00057949]
[1736065160567,0.204419,97838.0,97826.0,0.00057949]
[1736065161710,0.204419,97838.0,97826.0,0.00157949]
[1736065162330,0.00748,97839.0,97826.0,0.00157949]
[1736065162547,0.204415,97840.0,97826.0,0.00157949]
[1736065162757,0.204415,97840.0,97827.0,0.08408032]
[1736065162955,0.003,97839.0,97827.0,0.08408032]
[1736065163191,0.204415,97840.0,97827.0,0.08408032]
[1736065163398,0.15,97849.0,97829.0,0.078]
[1736065163620,0.002,97838.0,97830.0,0.204436]
[1736065163834,0.15,97847.0,97830.0,0.21050561]
[1736065164039,0.15,97845.0,97830.0,0.21050561]
[1736065164431,0.15,97845.0,97831.0,0.078]
[1736065164858,0.15,97845.0,97832.0,0.00606247]
[1736065165062,0.204407,97844.0,97833.0,0.06901]
[1736065165292,0.004,97840.0,97833.0,0.06901]
[1736065165500,0.204407,97844.0,97834.0,0.00605534]
[1736065165911,0.204407,97844.0,97833.0,0.06901]
[1736065166347,0.207407,97844.0,97834.0,0.00605534]
[1736065166762,0.204407,97844.0,97834.0,0.00605534]
[1736065166968,0.208407,97844.0,97834.0,0.00605534]
[1736065167990,0.412814,97844.0,97834.0,0.00705534]
[1736065168203,0.408814,97844.0,97834.0,0.00705534]
[1736065168632,0.410814,97844.0,97834.0,0.001]
[1736065169010,0.01888675,97843.0,97834.0,0.001]
[1736065169212,0.204411,97842.0,97835.0,0.00606281]
[1736065169619,0.01888675,97841.0,97833.0,0.06901]
[1736065170031,0.01888675,97841.0,97834.0,0.00606638]
[1736065170888,0.01888675,97841.0,97837.0,0.204419]
[1736065171107,0.01888675,97841.0,97840.0,0.077]
[1736065171314,0.002,97843.0,97841.0,0.204413]
[1736065171513,0.000171,97846.0,97842.0,0.08303763]
[1736065171719,0.000171,97846.0,97844.0,0.077]
[1736065171920,0.000171,97846.0,97845.0,0.00602693]
[1736065172959,0.000171,97846.0,97845.0,0.50602693]
[1736065173551,0.000171,97846.0,97845.0,0.50702693]
[1736065175435,0.001171,97846.0,97845.0,0.50702693]
[1736065175626,0.000171,97846.0,97845.0,0.58402693]
[1736065181134,0.000171,97846.0,97845.0,0.63242693]
[1736065181957,0.000171,97846.0,97845.0,0.63142693]
[1736065182359,0.000171,97846.0,97845.0,0.63342693]
[1736065183111,0.000171,97846.0,97845.0,0.63142693]
[1736065183315,0.000171,97846.0,97845.0,0.63342693]
[1736065183518,0.000171,97846.0,97845.0,0.73741325]
[1736065183778,0.13604316,97876.0,97866.0,0.0767]
[1736065184191,0.13604316,97876.0,97868.0,0.0767]
[1736065184553,0.204327,97883.0,97869.0,0.00593368]
[1736065184718,0.204327,97883.0,97870.0,0.40128608]
[1736065184920,0.20447548,97883.0,97871.0,0.0767]
[1736065185185,0.01891536,97882.0,97871.0,0.08364821]
[1736065185491,0.01891536,97882.0,97874.0,0.049]
[1736065185699,0.00014848,97883.0,97876.0,0.0767]
[1736065185903,0.00914848,97883.0,97876.0,0.07772159]
[1736065186104,0.01214848,97883.0,97877.0,0.00590516]
[1736065186329,0.01214848,97883.0,97878.0,0.0767]
[1736065186534,0.002,97882.0,97878.0,0.08260159]
[1736065186738,0.00014848,97883.0,97878.0,0.28693659]
[1736065186942,0.00014848,97883.0,97879.0,0.15400791]
[1736065187153,0.00014848,97883.0,97881.0,0.0767]
[1736065187369,0.00014848,97883.0,97882.0,0.3583348]
[1736065187584,0.00014848,97883.0,97882.0,0.43990065]
[1736065188212,0.00214848,97883.0,97882.0,0.43990065]
[1736065188417,0.00014848,97883.0,97882.0,0.43990065]
[1736065188857,0.00114848,97883.0,97882.0,0.44090065]
[1736065189578,0.00131948,97883.0,97882.0,0.44490065]
[1736065191184,0.00031948,97883.0,97882.0,0.44390065]
[1736065191514,0.00131948,97883.0,97882.0,0.44090065]
[1736065192019,0.00131948,97883.0,97882.0,0.44490065]
[1736065199023,0.00131948,97883.0,97882.0,0.13658733]
[1736065200697,0.00031948,97883.0,97882.0,0.08258733]
[1736065200906,0.00031948,97883.0,97882.0,0.00588733]
[1736065201117,0.00031948,97883.0,97882.0,0.00888733]
[1736065201305,0.00031948,97883.0,97882.0,0.002]
[1736065201495,0.408654,97882.0,97876.0,0.5]
[1736065203784,0.417654,97882.0,97876.0,0.5]
[1736065203980,0.408662,97880.0,97876.0,0.5]
[1736065204227,0.204336,97878.0,97876.0,0.5]
[1736065204447,0.10398632,97877.0,97876.0,0.5]
[1736065205056,0.12285058,97877.0,97876.0,0.5]
[1736065205829,0.13185058,97877.0,97876.0,0.5]
[1736065206035,0.13385058,97877.0,97876.0,0.5]
[1736065207284,0.12485058,97877.0,97876.0,0.5]
[1736065207708,0.13385058,97877.0,97876.0,0.5]
[1736065207936,0.13185058,97877.0,97876.0,0.5]
[1736065208349,0.13381058,97877.0,97876.0,0.5]
[1736065208548,0.02986426,97877.0,97876.0,0.5]
[1736065209523,0.02786426,97877.0,97876.0,0.5]
[1736065209920,0.02986426,97877.0,97876.0,0.5]
[1736065210598,0.02086426,97877.0,97876.0,0.5]
[1736065210806,0.02886426,97877.0,97876.0,0.5]
[1736065213278,0.28285058,97877.0,97876.0,0.5]
[1736065214869,0.204372,97861.0,97854.0,0.126]
[1736065215071,0.204372,97861.0,97855.0,0.00674259]
[1736065217511,0.204372,97861.0,97855.0,0.00774259]
[1736065219133,0.204372,97861.0,97855.0,0.00874259]
[1736065219777,0.204372,97861.0,97855.0,0.00674259]
[1736065220018,0.408744,97861.0,97855.0,0.00674259]
[1736065220435,0.408744,97861.0,97854.0,0.126]
[1736065220640,0.412744,97861.0,97854.0,0.126]
[1736065220996,0.408744,97861.0,97854.0,0.126]
[1736065221209,0.210372,97861.0,97854.0,0.126]
[1736065221405,0.006,97861.0,97854.0,0.126]
[1736065221630,0.001,97861.0,97856.0,0.0802]
[1736065221833,0.006,97861.0,97856.0,0.0812218]
[1736065222029,0.006,97861.0,97857.0,0.00673777]
[1736065222275,0.408707,97870.0,97857.0,0.00673777]
[1736065222429,0.004,97861.0,97857.0,0.00673777]
[1736065222634,0.005,97861.0,97857.0,0.00673777]
[1736065223061,0.005,97861.0,97858.0,0.0784218]
[1736065223264,0.29502344,97882.0,97858.0,0.0784218]
[1736065223265,0.09069544,97882.0,97859.0,0.204375]
[1736065223471,0.09069544,97882.0,97872.0,0.0774]
[1736065223673,0.09069544,97882.0,97872.0,0.07842163]
[1736065224106,0.09069544,97882.0,97874.0,0.0774]
[1736065224309,0.09069544,97882.0,97875.0,0.00667202]
[1736065224521,0.0001708,97877.0,97875.0,0.00667202]
[1736065225759,0.0001708,97877.0,97876.0,0.00102162]
[1736065225969,0.0001708,97877.0,97876.0,0.08509007]
[1736065226576,0.0001708,97877.0,97876.0,0.28943007]
[1736065226778,0.0001708,97877.0,97876.0,0.08406845]
[1736065226981,0.0001708,97877.0,97876.0,0.08508999]
[1736065227651,0.0001708,97877.0,97876.0,0.23667631]
[1736065227878,0.0001708,97877.0,97876.0,0.23565477]
[1736065228295,0.0001708,97877.0,97876.0,0.23865477]
[1736065228477,0.0001708,97877.0,97876.0,0.23965477]
[1736065228824,0.0001708,97877.0,97876.0,0.23865477]
[1736065229024,0.00031948,97883.0,97881.0,0.1]
[1736065229250,0.00031948,97883.0,97882.0,0.55733466]
[1736065229446,0.00031948,97883.0,97882.0,0.56294771]
[1736065230066,0.0001708,97906.0,97893.0,0.281704]
[1736065230309,0.0001708,97906.0,97893.0,0.44724551]
[1736065230725,0.0001708,97906.0,97893.0,0.57024551]
[1736065231125,0.0001708,97906.0,97896.0,0.1]
[1736065231325,0.0001708,97906.0,97905.0,0.329279]
[1736065231666,0.0001708,97906.0,97905.0,0.43326532]
[1736065231885,0.0001708,97906.0,97905.0,0.23677776]
[1736065232627,0.0001708,97906.0,97905.0,0.13279144]
[1736065233253,0.0001708,97906.0,97905.0,0.13679144]
[1736065233428,0.0001708,97906.0,97905.0,0.63679144]
[1736065234035,0.0001708,97906.0,97905.0,0.51179144]
[1736065234327,0.0031708,97906.0,97905.0,0.51179144]
[1736065234538,0.0031708,97906.0,97905.0,0.50779144]
[1736065234958,0.25715712,97906.0,97905.0,0.50779144]
[1736065235166,0.27601555,97906.0,97905.0,0.50779144]
[1736065236181,0.27301555,97906.0,97905.0,0.50779144]
[1736065236555,0.27601555,97906.0,97905.0,0.50779144]
[1736065236729,0.27901555,97906.0,97905.0,0.50779144]
[1736065237091,0.27401555,97906.0,97905.0,0.50779144]
[1736065237365,0.27101555,97906.0,97905.0,0.50779144]
[1736065237748,0.28018635,97906.0,97905.0,0.50879144]
[1736065241595,0.28018635,97906.0,97905.0,0.00879144]
[1736065241828,0.28018635,97906.0,97905.0,0.001]
[1736065243506,0.28018635,97906.0,97905.0,0.000612]
[1736065247226,0.40568635,97906.0,97905.0,0.000612]
[1736065248189,0.40268635,97906.0,97905.0,0.000612]
[1736065248396,0.354302,97894.0,97893.0,8.54e-05]
[1736065249158,0.37316043,97894.0,97893.0,8.54e-05]
[1736065250187,0.37916043,97894.0,97893.0,0.0010854]
[1736065251269,0.38016043,97894.0,97893.0,0.0010854]
[1736065253971,0.48414675,97894.0,97893.0,0.0010854]
[1736065254814,0.58314675,97894.0,97893.0,0.0010854]
[1736065255009,0.58814675,97894.0,97893.0,0.0010854]
[1736065255129,0.72538254,97894.0,97893.0,0.0010854]
[1736065255328,0.71938254,97894.0,97893.0,8.54e-05]
[1736065255529,0.68628832,97894.0,97893.0,4e-07]
[1736065255734,0.69528832,97894.0,97893.0,4e-07]
[1736065255936,1.02073765,97894.0,97893.0,4e-07]
[1736065256173,0.89773765,97894.0,97893.0,4e-07]
[1736065256377,0.204358,97868.0,97861.0,0.00102183]
[1736065256653,0.204358,97868.0,97860.0,0.04881585]
[1736065257065,0.408716,97868.0,97860.0,0.04881585]
[1736065257216,0.204358,97868.0,97860.0,0.04881585]
[1736065257679,0.204358,97868.0,97861.0,0.001]
[1736065258316,0.204358,97868.0,97860.0,0.04881585]
[1736065258673,0.204358,97868.0,97860.0,0.04981585]
[1736065258931,0.204358,97868.0,97861.0,0.08741318]
[1736065259134,0.204358,97868.0,97861.0,0.0803]
[1736065259341,0.204358,97868.0,97862.0,0.007111]
[1736065259990,0.205358,97868.0,97862.0,0.007111]
[1736065260167,0.204358,97868.0,97862.0,0.007111]
[1736065260571,0.002,97868.0,97863.0,0.0803]
[1736065260773,0.002,97868.0,97863.0,0.08843054]
[1736065261312,0.408718,97867.0,97863.0,0.08740882]
[1736065263169,0.410718,97867.0,97863.0,0.08740882]
[1736065263380,0.410718,97867.0,97863.0,0.0803]
[1736065268891,0.410678,97867.0,97863.0,0.0803]
[1736065272523,0.410678,97867.0,97863.0,0.0803854]
[1736065276330,0.002,97867.0,97863.0,0.0803854]
[1736065276540,0.002,97867.0,97864.0,0.0809217]
[1736065276742,0.002,97867.0,97864.0,0.08803153]
[1736065279206,0.204348,97872.0,97864.0,0.08803153]
[1736065280057,0.204348,97872.0,97864.0,0.08903153]
[1736065280470,0.204348,97872.0,97864.0,0.08803153]
[1736065281085,0.204356,97869.0,97864.0,0.08700983]
[1736065282871,0.206356,97869.0,97864.0,0.08700983]
[1736065283116,0.204356,97869.0,97864.0,0.08700983]
[1736065283471,0.205356,97869.0,97864.0,0.08800983]
[1736065283693,0.409712,97869.0,97864.0,0.08800983]
[1736065284328,0.408712,97869.0,97864.0,0.08700983]
[1736065284686,0.411712,97869.0,97864.0,0.08700983]
[1736065284901,0.4118828,97869.0,97864.0,0.08700983]
[1736065286109,0.4088828,97869.0,97864.0,0.08700983]
[1736065286328,0.4118828,97869.0,97864.0,0.08700983]
[1736065289379,0.2075268,97869.0,97864.0,0.08700983]
[1736065290221,0.2045268,97869.0,97864.0,0.08700983]
[1736065290430,0.2075268,97869.0,97864.0,0.08700983]
[1736065291230,0.2045268,97869.0,97864.0,0.08700983]
[1736065291438,0.4088828,97869.0,97864.0,0.08700983]
[1736065291669,0.4118828,97869.0,97864.0,0.08700983]
[1736065292025,0.4118828,97869.0,97864.0,0.0799]
[1736065292635,0.15,97866.0,97863.0,8.54e-05]
[1736065293039,0.15,97866.0,97864.0,0.5]
[1736065293245,0.15,97866.0,97865.0,0.00722114]
[1736065293752,0.154,97866.0,97865.0,0.00722114]
[1736065293989,0.15,97866.0,97865.0,0.00722114]
[1736065294206,0.4854441,97866.0,97865.0,0.00722114]
[1736065294409,0.4904441,97866.0,97863.0,8.54e-05]
[1736065294616,0.15,97864.0,97863.0,8.54e-05]
[1736065296700,0.153,97864.0,97863.0,8.54e-05]
[1736065296910,0.72158268,97864.0,97863.0,8.54e-05]
[1736065297119,0.71258268,97864.0,97863.0,8.54e-05]
[1736065297296,0.71558268,97864.0,97863.0,8.54e-05]
[1736065297739,0.72458268,97864.0,97863.0,8.54e-05]
[1736065298324,0.4884441,97864.0,97863.0,8.54e-05]
[1736065298534,0.4944441,97864.0,97863.0,8.54e-05]
[1736065298960,0.4974441,97864.0,97863.0,8.54e-05]
[1736065299315,0.4944441,97864.0,97863.0,8.54e-05]
[1736065299681,0.4884441,97864.0,97863.0,8.54e-05]
[1736065300111,0.4974441,97864.0,97863.0,8.54e-05]
[1736065300322,0.4884441,97864.0,97863.0,8.54e-05]
[1736065300857,0.4944441,97864.0,97863.0,8.54e-05]
[1736065300988,0.4854441,97864.0,97863.0,8.54e-05]
[1736065301196,0.4944441,97864.0,97863.0,8.54e-05]
[1736065302064,0.72460138,97864.0,97863.0,8.54e-05]
[1736065302261,0.57460138,97864.0,97863.0,8.54e-05]
[1736065302463,0.57460138,97864.0,97863.0,0.1278854]
[1736065302730,0.57460138,97864.0,97863.0,0.1352967]
[1736065303062,0.56560138,97864.0,97863.0,0.1352967]
[1736065303284,0.57160138,97864.0,97863.0,0.1352967]
[1736065303483,0.3444441,97864.0,97863.0,0.1352967]
[1736065303702,0.3474441,97864.0,97863.0,0.1352967]
[1736065303921,0.3504441,97864.0,97863.0,0.1352967]
[1736065304144,0.3384441,97864.0,97863.0,0.1352967]
[1736065304345,0.3404441,97864.0,97863.0,0.1352967]
[1736065304936,0.005,97864.0,97863.0,0.1352967]
[1736065305822,0.002,97864.0,97863.0,0.1352967]
[1736065306029,0.204349,97872.0,97863.0,0.1352967]
[1736065306201,0.204349,97872.0,97864.0,0.00102171]
[1736065306407,0.204349,97872.0,97865.0,0.00740666]
[1736065307818,0.204356,97868.0,97865.0,0.00740666]
[1736065308395,0.204356,97868.0,97864.0,8.54e-05]
[1736065308604,0.204356,97868.0,97866.0,0.00740254]
[1736065308816,0.204356,97868.0,97864.0,8.54e-05]
[1736065308817,0.204356,97868.0,97865.0,0.00740472]
[1736065309031,0.204356,97868.0,97867.0,0.00740037]
[1736065309234,0.204356,97868.0,97866.0,0.00740254]
[1736065309446,0.204356,97868.0,97867.0,0.00740037]
[1736065309650,0.204349,97872.0,97867.0,0.00740037]
[1736065309850,0.204349,97872.0,97864.0,0.00110711]
[1736065310052,0.204349,97872.0,97868.0,0.00739819]
[1736065310524,0.004,97868.0,97864.0,0.00110711]
[1736065310883,0.204349,97872.0,97864.0,0.00110711]
[1736065311088,0.0041708,97869.0,97864.0,0.00110711]
[1736065312190,0.0041708,97869.0,97864.0,0.50110711]
[1736065312395,0.0011708,97869.0,97864.0,0.50110711]
[1736065312808,0.002,97868.0,97864.0,0.50110711]
[1736065313231,0.0001708,97869.0,97864.0,0.50110711]
[1736065313431,0.0031708,97869.0,97864.0,0.50110711]
[1736065313866,0.0001708,97869.0,97864.0,0.50110711]
[1736065314062,0.002,97868.0,97864.0,0.50110711]
[1736065314899,0.0001708,97869.0,97864.0,0.50110711]
[1736065316386,0.0031708,97869.0,97864.0,0.50110711]
[1736065316591,0.0001708,97869.0,97864.0,0.50110711]
[1736065317005,0.0021708,97869.0,97864.0,0.50110711]
[1736065317229,0.0021708,97869.0,97865.0,0.0771]
[1736065318327,0.0001708,97869.0,97865.0,0.0771]
[1736065318722,0.0001708,97869.0,97866.0,0.00740254]
[1736065319669,0.0031708,97869.0,97866.0,0.00740254]
[1736065320093,0.0001708,97869.0,97866.0,0.00740254]
[1736065320278,0.0031708,97869.0,97866.0,0.00740254]
[1736065321105,0.0001708,97869.0,97866.0,0.00740254]
[1736065321309,0.0001708,97869.0,97866.0,0.00842424]
[1736065322819,0.0001708,97869.0,97866.0,0.00942424]
[1736065324456,0.0001708,97869.0,97868.0,0.0478]
[1736065324616,0.0001708,97869.0,97868.0,0.43976214]
[1736065324825,0.0001708,97869.0,97868.0,0.43874051]
[1736065326433,0.0021708,97869.0,97868.0,0.43874051]
[1736065326653,0.0001708,97869.0,97868.0,0.43874051]
[1736065326856,0.0001708,97869.0,97868.0,0.43974051]
[1736065327415,0.0001708,97869.0,97868.0,0.44274051]
[1736065329690,0.0001308,97869.0,97868.0,0.44274051]
[1736065335247,0.0001308,97869.0,97868.0,0.23838451]
[1736065335500,0.0001308,97869.0,97868.0,0.13439819]
[1736065335704,0.0001308,97869.0,97868.0,0.13541981]
[1736065336091,0.0001308,97869.0,97868.0,0.13241981]
[1736065336296,0.0001308,97869.0,97868.0,0.13141981]
[1736065336497,0.0001308,97869.0,97868.0,0.13441981]
[1736065336916,0.0001308,97869.0,97868.0,0.13339819]
[1736065337372,0.0001308,97869.0,97868.0,0.13441983]
[1736065338495,0.0001308,97869.0,97868.0,0.13441985]
[1736065338702,0.0001308,97869.0,97868.0,0.13339819]
[1736065338900,0.0001308,97869.0,97868.0,0.13441987]
[1736065339104,0.0001308,97869.0,97868.0,0.13241987]
[1736065339474,0.0001308,97869.0,97868.0,0.13141987]
[1736065339683,0.0001308,97869.0,97868.0,0.13441987]
[1736065340503,0.0001308,97869.0,97868.0,0.13141987]
[1736065340776,0.0001308,97869.0,97868.0,0.13241987]
[1736065340961,0.0001308,97869.0,97868.0,0.23640619]
[1736065341094,0.0001308,97869.0,97868.0,0.23538451]
[1736065341982,0.0001308,97869.0,97868.0,0.25733416]
[1736065342227,0.0001308,97869.0,97868.0,0.25833416]
[1736065342460,0.0001308,97869.0,97868.0,0.25633416]
[1736065342689,0.0001308,97869.0,97868.0,0.25833416]
[1736065345464,0.0001308,97869.0,97868.0,0.25841956]
[1736065346701,0.0001308,97869.0,97868.0,0.25641956]
[1736065347973,0.0001308,97869.0,97868.0,0.25841956]
[1736065348432,0.0001308,97869.0,97868.0,0.25741956]
[1736065348625,0.0001308,97869.0,97868.0,0.25841956]
[1736065351133,0.0001308,97869.0,97868.0,0.25641956]
[1736065351381,0.0001308,97869.0,97868.0,0.25841956]
[1736065351624,0.0001308,97869.0,97868.0,0.25741956]
[1736065351864,0.0001308,97869.0,97868.0,0.25841956]
[1736065352779,0.0001308,97869.0,97868.0,0.35841956]
[1736065353725,0.0001308,97869.0,97868.0,0.25841956]
[1736065354997,0.0001308,97869.0,97868.0,0.75841956]
[1736065355550,0.0001308,97869.0,97868.0,0.73746991]
[1736065357917,0.0001308,97869.0,97868.0,0.83746991]
[1736065358119,0.0001308,97869.0,97868.0,0.86046991]
[1736065358746,0.0001308,97869.0,97868.0,0.85846991]
[1736065358954,0.0001308,97869.0,97868.0,0.85746991]
[1736065359153,0.0001308,97869.0,97868.0,0.86046991]
[1736065359579,0.0011308,97869.0,97868.0,0.86146991]
[1736065359807,0.0001308,97869.0,97868.0,0.86046991]
[1736065360421,0.0001308,97869.0,97868.0,0.85746991]
[1736065360952,0.0001308,97869.0,97868.0,0.86146991]
[1736065361194,0.0001308,97869.0,97868.0,0.85746991]
[1736065361399,0.0011308,97869.0,97868.0,0.86146991]
[1736065361594,0.0001308,97869.0,97868.0,0.86246991]
[1736065361996,0.0001308,97869.0,97868.0,2.36846991]
[1736065361997,0.0011308,97869.0,97868.0,2.36846991]
[1736065362206,0.0011308,97869.0,97868.0,2.35746991]
[1736065362366,0.0011308,97869.0,97868.0,2.46246991]
[1736065362563,0.09103511,97906.0,97868.0,2.46246991]
[1736065362564,0.0001708,97906.0,97887.0,0.1]
[1736065362792,0.0001708,97906.0,97877.0,0.1]
[1736065362793,0.0001708,97906.0,97891.0,0.0756]
[1736065363019,0.0001708,97906.0,97893.0,0.0756]
[1736065363187,0.0001708,97906.0,97894.0,0.10500762]
[1736065363426,0.0001708,97906.0,97895.0,0.0759]
[1736065363589,0.0001708,97906.0,97896.0,0.10500759]
[1736065363964,0.0001708,97906.0,97896.0,0.11233814]
[1736065364177,0.00022026,97906.0,97896.0,0.11233814]
[1736065364769,0.00722026,97906.0,97896.0,0.11233814]
[1736065364971,0.00122026,97906.0,97897.0,0.0759]
[1736065365175,0.00122026,97906.0,97898.0,0.10500757]
[1736065365332,0.00422026,97906.0,97898.0,0.11233376]
[1736065365919,0.00422026,97906.0,97898.0,0.11131251]
[1736065366335,0.204279,97905.0,97898.0,0.00732619]
[1736065366775,0.204279,97905.0,97897.0,0.5]
[1736065367290,0.00022026,97906.0,97898.0,0.00732619]
[1736065367521,0.204292,97900.0,97898.0,0.00934755]
[1736065367729,0.204292,97900.0,97898.0,0.001]
[1736065368047,0.204292,97900.0,97898.0,0.002]
[1736065368670,0.204292,97900.0,97897.0,0.5]
[1736065369057,0.205292,97900.0,97897.0,0.5]
[1736065369758,0.204292,97900.0,97897.0,0.5]
[1736065370579,0.204283,97903.0,97897.0,0.5]
[1736065371075,0.204283,97903.0,97898.0,0.00732619]
[1736065371304,0.001,97900.0,97897.0,0.5]
[1736065371733,0.001,97900.0,97898.0,0.0769214]
[1736065372109,0.00022026,97906.0,97899.0,0.00732402]
[1736065372322,0.00022026,97906.0,97900.0,0.00102132]
[1736065372520,0.003,97903.0,97900.0,0.00102132]
[1736065372747,0.00022026,97906.0,97901.0,0.00731966]
[1736065372951,0.00022026,97906.0,97902.0,0.00102132]
[1736065373332,0.00022026,97906.0,97903.0,0.00731531]
[1736065374338,0.00022026,97906.0,97899.0,0.00102132]
[1736065374669,0.00222026,97906.0,97904.0,0.00731313]
[1736065374878,0.00222026,97906.0,97899.0,0.00102132]
[1736065375083,0.00222026,97906.0,97905.0,0.00731095]
[1736065375262,0.00322026,97906.0,97899.0,0.00102132]
[1736065375687,0.00022026,97906.0,97900.0,0.00732184]
[1736065375939,0.00122026,97906.0,97901.0,0.00102132]
[1736065376176,0.00022026,97906.0,97901.0,0.00102132]
[1736065376377,0.00022026,97906.0,97902.0,0.00731748]
[1736065376581,0.00022026,97906.0,97903.0,0.00102128]
[1736065376782,0.00022026,97906.0,97904.0,0.00102126]
[1736065377013,0.00022026,97906.0,97905.0,0.10500755]
[1736065377348,0.00022026,97906.0,97905.0,0.11231639]
[1736065378135,0.00022026,97906.0,97905.0,0.11331639]
[1736065378382,0.00022026,97906.0,97905.0,0.00930884]
[1736065378561,0.00022026,97906.0,97905.0,0.00830884]
[1736065378907,0.20449726,97906.0,97898.0,0.0759]
[1736065379107,0.20449726,97906.0,97905.0,0.002]
[1736065379315,0.20449726,97906.0,97905.0,0.001]
[1736065379716,0.00122026,97906.0,97905.0,0.001]
[1736065380576,0.00122026,97906.0,97899.0,0.00102131]
[1736065380778,0.20549726,97906.0,97898.0,0.17988632]
[1736065381010,0.20449726,97906.0,97900.0,0.00731973]
[1736065381269,0.20449726,97906.0,97899.0,0.0073219]
[1736065381420,0.20449726,97906.0,97901.0,0.00731755]
[1736065381701,0.00022026,97906.0,97900.0,0.00731973]
[1736065381904,0.00022026,97906.0,97902.0,0.00731537]
[1736065382107,0.00022026,97906.0,97903.0,0.00102131]
[1736065382309,0.00022026,97906.0,97903.0,0.0083345]
[1736065382515,0.00022026,97906.0,97903.0,0.00102131]
[1736065382746,0.00022026,97906.0,97904.0,0.00731102]
[1736065384106,0.00022026,97906.0,97904.0,0.00833233]
[1736065384316,0.00022026,97906.0,97905.0,0.00102126]
[1736065384553,0.00022026,97906.0,97905.0,0.0083301]
[1736065385832,0.00022026,97906.0,97905.0,0.0093301]
[1736065386031,0.00022026,97906.0,97905.0,0.0103301]
[1736065390474,0.00018026,97906.0,97905.0,0.0103301]
[1736065393144,0.00018026,97906.0,97905.0,0.00930884]
[1736065393345,0.00018026,97906.0,97905.0,0.002]
[1736065394536,0.00018026,97906.0,97905.0,0.00930884]
[1736065395269,0.00018026,97906.0,97905.0,0.01033013]
[1736065395688,0.00018026,97906.0,97905.0,0.00930884]
[1736065396098,0.00018026,97906.0,97905.0,0.01033013]
[1736065396647,0.00018026,97906.0,97905.0,0.0103301]
[1736065396844,0.00018026,97906.0,97905.0,0.50930884]
[1736065397052,0.00018026,97906.0,97905.0,0.502]
[1736065397256,0.00018026,97906.0,97905.0,0.50932431]
[1736065399388,0.15018026,97906.0,97905.0,0.50932431]
[1736065400172,0.15018026,97906.0,97905.0,0.50832431]
[1736065400647,0.27966658,97906.0,97905.0,0.50732431]
[1736065400891,0.28674658,97906.0,97905.0,0.50732431]
[1736065401266,0.62193989,97906.0,97905.0,0.50732431]
[1736065401518,0.62993989,97906.0,97905.0,0.50832431]
[1736065401714,0.61685989,97906.0,97905.0,0.50732431]
[1736065402059,0.204324,97884.0,97875.0,0.0825]
[1736065402362,0.204324,97884.0,97876.0,0.00102158]
[1736065402570,0.204315,97888.0,97876.0,0.00102158]
[1736065403017,0.204315,97888.0,97878.0,0.5]
[1736065403224,0.20431,97891.0,97880.0,0.082]
[1736065403437,0.20431,97891.0,97881.0,0.00102153]
[1736065403788,0.20432,97886.0,97880.0,0.1292]
[1736065404192,0.40864,97886.0,97880.0,0.1292]
[1736065404968,0.40864,97886.0,97880.0,0.1302]
[1736065405382,0.40864,97886.0,97880.0,0.1292]
[1736065406928,0.40964,97886.0,97880.0,0.1292]
[1736065407129,0.40864,97886.0,97880.0,0.1292]
[1736065407406,0.41164,97886.0,97880.0,0.082]
[1736065407587,0.41264,97886.0,97880.0,0.082]
[1736065407989,0.41564,97886.0,97880.0,0.082]
[1736065408388,0.40964,97886.0,97880.0,0.082]
[1736065408981,0.40864,97886.0,97880.0,0.082]
[1736065409650,0.41164,97886.0,97881.0,0.00664762]
[1736065410002,0.40864,97886.0,97881.0,0.00664762]
[1736065410200,0.41064,97886.0,97881.0,0.00664762]
[1736065410605,0.40864,97886.0,97881.0,0.00664762]
[1736065410985,0.41164,97886.0,97881.0,0.00664762]
[1736065411501,0.41464,97886.0,97881.0,0.00664762]
[1736065411916,0.21032,97886.0,97881.0,0.00664762]
[1736065412120,0.006,97886.0,97881.0,0.00664762]
[1736065412352,0.007,97886.0,97881.0,0.00664762]
[1736065412705,0.001,97886.0,97881.0,0.00664762]
[1736065412908,0.20431,97891.0,97881.0,0.00664762]
[1736065413115,0.003,97886.0,97882.0,0.0472]
[1736065413336,0.003,97886.0,97883.0,0.00664311]
[1736065413566,0.204308,97892.0,97883.0,0.00664311]
[1736065413989,0.01020393,97900.0,97886.0,0.082]
[1736065414314,0.204292,97899.0,97887.0,0.00102146]
[1736065414441,0.204292,97899.0,97888.0,0.00102146]
[1736065414843,0.204292,97899.0,97889.0,0.00663004]
[1736065415087,0.204292,97899.0,97889.0,0.0076515]
[1736065415715,0.204292,97899.0,97890.0,0.082]
[1736065416103,0.002,97892.0,97891.0,0.00662419]
[1736065416571,0.002,97900.0,97891.0,0.00764565]
[1736065416773,0.204288,97901.0,97892.0,0.00102142]
[1736065416983,0.001,97899.0,97892.0,0.00102142]
[1736065417180,0.001,97899.0,97893.0,0.00661983]
[1736065417399,0.005,97899.0,97893.0,0.00661983]
[1736065417609,0.204288,97901.0,97893.0,0.00661983]
[1736065418001,0.002,97900.0,97893.0,0.00661983]
[1736065418157,0.002,97900.0,97894.0,0.0010214]
[1736065418364,0.002,97900.0,97895.0,0.00661548]
[1736065418967,0.002,97900.0,97896.0,0.1292]
[1736065419170,0.0001708,97905.0,97898.0,0.082]
[1736065419377,0.0001708,97905.0,97899.0,0.00102133]
[1736065419607,0.0001708,97905.0,97900.0,0.00102133]